[Event "MČR v bleskovém šachu družstev 2019"]
[Site "Teplice, Czech Republic"]
[Date "2019.09.14"]
[Round "10.23"]
[White "Spicka, Jan"]
[Black "Kovar, Vojtech"]
[Result "0-1"]
[TimeControl "3 mim. + 2 s"]
[WhiteFideId "366781"]
[WhiteElo "1930"]
[BlackElo "2247"]

1. e4 {[%clk 00:03:03]} {[%emt 00:00:01]} c6 {[%clk 00:03:03]} 2. d4 {[%clk
00:03:03]} {[%emt 00:00:01]} d5 {[%clk 00:03:04]} {[%emt 00:00:01]} 3. exd5
{[%clk 00:03:03]} {[%emt 00:00:03]} cxd5 {[%clk 00:03:05]} {[%emt 00:00:01]} 4.
c4 {[%clk 00:03:04]} {[%emt 00:00:01]} Nf6 {[%clk 00:03:05]} {[%emt 00:00:01]}
5. Nc3 {[%clk 00:03:03]} {[%emt 00:00:04]} g6 {[%clk 00:03:04]} {[%emt
00:00:02]} 6. Be3 {[%clk 00:02:56]} {[%emt 00:00:09]} Bg7 {[%clk 00:03:04]}
{[%emt 00:00:02]} 7. Nf3 {[%clk 00:02:42]} {[%emt 00:00:16]} O-O {[%clk
00:03:04]} {[%emt 00:00:02]} 8. Be2 {[%clk 00:02:37]} {[%emt 00:00:07]} Nc6
{[%clk 00:03:01]} {[%emt 00:00:05]} 9. O-O {[%clk 00:02:35]} {[%emt 00:00:04]}
dxc4 {[%clk 00:03:01]} {[%emt 00:00:02]} 10. Bxc4 {[%clk 00:02:36]} {[%emt
00:00:01]} Bg4 {[%clk 00:03:02]} 11. Be2 {[%clk 00:02:09]} {[%emt 00:00:30]}
Nd5 {[%clk 00:02:52]} {[%emt 00:00:12]} 12. Qd2 {[%clk 00:01:54]} {[%emt
00:00:17]} Nxe3 {[%clk 00:02:44]} {[%emt 00:00:09]} 13. fxe3 {[%clk 00:01:54]}
{[%emt 00:00:02]} Rc8 {[%clk 00:02:38]} {[%emt 00:00:08]} 14. Rac1 {[%clk
00:01:49]} {[%emt 00:00:08]} Qa5 {[%clk 00:02:39]} 15. a3 {[%clk 00:01:44]}
{[%emt 00:00:07]} Rfd8 {[%clk 00:02:39]} {[%emt 00:00:01]} 16. Ne4 {[%clk
00:01:28]} {[%emt 00:00:17]} Qxd2 {[%clk 00:02:39]} {[%emt 00:00:04]} 17. Nexd2
{[%clk 00:01:29]} e5 {[%emt 00:00:36]} 18. Bb5 {[%clk 00:00:55]} {[%emt
00:00:03]} exd4 {[%clk 00:02:37]} {[%emt 00:00:03]} 19. Bxc6 {[%clk 00:00:56]}
{[%emt 00:00:02]} bxc6 {[%clk 00:02:33]} {[%emt 00:00:05]} 20. exd4 {[%clk
00:00:53]} {[%emt 00:00:05]} Bh6 {[%clk 00:02:21]} {[%emt 00:00:14]} 21. Rc3
{[%clk 00:00:20]} {[%emt 00:00:33]} c5 {[%clk 00:02:17]} {[%emt 00:00:08]} 22.
Ne4 {[%clk 00:00:15]} {[%emt 00:00:07]} Bg7 {[%clk 00:02:12]} {[%emt 00:00:08]}
23. Nxc5 {[%clk 00:00:13]} {[%emt 00:00:04]} Bxf3 {[%clk 00:02:11]} {[%emt
00:00:02]} 24. gxf3 {[%clk 00:00:12]} {[%emt 00:00:03]} Bxd4+ {[%clk 00:02:12]}
{[%emt 00:00:01]} 25. Kg2 {[%clk 00:00:12]} {[%emt 00:00:03]} Bxc3 {[%clk
00:02:13]} 26. bxc3 {[%clk 00:00:08]} {[%emt 00:00:06]} Rd2+ {[%clk 00:02:14]}
27. Kg3 {[%clk 00:00:08]} {[%emt 00:00:02]} Rxc5 {[%clk 00:02:15]} 0-1

[Event "MČR v bleskovém šachu družstev 2019"]
[Site "Teplice, Czech Republic"]
[Date "2019.09.14"]
[Round "10.24"]
[White "Ocelak, Jakub"]
[Black "Srba, Stanislav"]
[Result "1-0"]
[TimeControl "3 mim. + 2 s"]
[BlackFideId "364720"]
[WhiteElo "1705"]
[BlackElo "1883"]

1. e4 {[%clk 00:03:02]} {[%emt 00:00:02]} e6 {[%clk 00:03:03]} 2. Nf3 {[%clk
00:03:02]} {[%emt 00:00:02]} d5 {[%clk 00:03:03]} {[%emt 00:00:03]} 3. e5
{[%clk 00:03:03]} {[%emt 00:00:01]} c5 {[%clk 00:03:03]} {[%emt 00:00:02]} 4.
b4 {[%clk 00:03:04]} {[%emt 00:00:01]} cxb4 {[%clk 00:02:58]} {[%emt 00:00:07]}
5. a3 {[%clk 00:03:05]} Nc6 {[%clk 00:02:56]} {[%emt 00:00:05]} 6. axb4 {[%clk
00:03:03]} {[%emt 00:00:04]} Bxb4 {[%clk 00:02:50]} {[%emt 00:00:07]} 7. c3
{[%clk 00:03:00]} {[%emt 00:00:05]} Bc5 {[%clk 00:02:49]} {[%emt 00:00:04]} 8.
d4 {[%clk 00:03:00]} {[%emt 00:00:02]} Be7 {[%clk 00:02:48]} {[%emt 00:00:02]}
9. Ba3 {[%clk 00:03:01]} {[%emt 00:00:01]} Nh6 {[%clk 00:02:38]} {[%emt
00:00:13]} 10. Bd3 {[%clk 00:02:58]} {[%emt 00:00:05]} Bd7 {[%clk 00:02:26]}
{[%emt 00:00:13]} 11. O-O {[%clk 00:02:46]} {[%emt 00:00:14]} O-O {[%clk
00:02:21]} {[%emt 00:00:07]} 12. Bxe7 {[%clk 00:02:45]} {[%emt 00:00:03]} Qxe7
{[%clk 00:02:13]} {[%emt 00:00:10]} 13. Na3 {[%clk 00:02:45]} {[%emt 00:00:02]}
a6 {[%clk 00:02:09]} {[%emt 00:00:06]} 14. Qc2 {[%clk 00:02:31]} {[%emt
00:00:17]} g6 {[%clk 00:02:04]} {[%emt 00:00:07]} 15. Qd2 {[%clk 00:02:13]}
{[%emt 00:00:20]} Kg7 {[%clk 00:02:01]} {[%emt 00:00:05]} 16. Rfb1 {[%clk
00:02:10]} {[%emt 00:00:05]} Rab8 {[%clk 00:01:33]} {[%emt 00:00:29]} 17. Nc2
{[%clk 00:01:54]} {[%emt 00:00:19]} Rfc8 {[%clk 00:01:32]} {[%emt 00:00:03]} 18.
Nb4 {[%clk 00:01:52]} {[%emt 00:00:04]} Nxb4 {[%clk 00:01:22]} {[%emt
00:00:12]} 19. cxb4 {[%clk 00:01:52]} {[%emt 00:00:02]} Rc7 {[%clk 00:01:18]}
{[%emt 00:00:05]} 20. b5 {[%clk 00:01:46]} {[%emt 00:00:08]} axb5 {[%clk
00:01:11]} {[%emt 00:00:09]} 21. Bxb5 {[%clk 00:01:46]} {[%emt 00:00:03]} Rbc8
{[%clk 00:01:08]} {[%emt 00:00:05]} 22. Bxd7 {[%clk 00:01:28]} {[%emt
00:00:19]} Qxd7 {[%clk 00:01:09]} {[%emt 00:00:02]} 23. Qg5 {[%clk 00:01:26]}
{[%emt 00:00:04]} Nf5 {[%clk 00:01:00]} {[%emt 00:00:11]} 24. g4 {[%clk
00:01:16]} {[%emt 00:00:13]} Ne7 {[%clk 00:00:41]} {[%emt 00:00:20]} 25. Qf6+
{[%clk 00:01:16]} {[%emt 00:00:02]} Kg8 {[%clk 00:00:38]} {[%emt 00:00:05]} 26.
Ng5 {[%clk 00:01:09]} {[%emt 00:00:08]} Nc6 {[%clk 00:00:34]} {[%emt 00:00:06]}
27. Nf3 {[%clk 00:00:56]} {[%emt 00:00:15]} Qe7 {[%clk 00:00:25]} {[%emt
00:00:11]} 28. Qf4 {[%clk 00:00:57]} {[%emt 00:00:02]} Kg7 {[%clk 00:00:22]}
{[%emt 00:00:05]} 29. g5 {[%clk 00:00:54]} {[%emt 00:00:05]} Nb8 {[%clk
00:00:18]} {[%emt 00:00:04]} 30. h4 {[%clk 00:00:50]} {[%emt 00:00:08]} Rc2
{[%clk 00:00:15]} {[%emt 00:00:05]} 31. Ra7 {[%clk 00:00:40]} {[%emt 00:00:11]}
R8c7 {[%clk 00:00:12]} {[%emt 00:00:05]} 32. Kg2 {[%clk 00:00:28]} {[%emt
00:00:14]} Na6 {[%clk 00:00:13]} {[%emt 00:00:01]} 33. Ra8 {[%clk 00:00:22]}
{[%emt 00:00:08]} Nb4 {[%clk 00:00:13]} {[%emt 00:00:02]} 34. Rxb4 {[%clk
00:00:20]} {[%emt 00:00:05]} Rc8 {[%clk 00:00:05]} {[%emt 00:00:10]} 35. Rxc8
{[%clk 00:00:19]} {[%emt 00:00:03]} Rxc8 {[%clk 00:00:05]} {[%emt 00:00:02]} 36.
Qf6+ {[%clk 00:00:19]} Qxf6 {[%clk 00:00:05]} {[%emt 00:00:03]} 37. exf6+
{[%clk 00:00:19]} {[%emt 00:00:02]} Kf8 {[%clk 00:00:06]} 38. Rxb7 {[%clk
00:00:20]} {[%emt 00:00:02]} Rc4 {[%clk 00:00:06]} {[%emt 00:00:01]} 39. Rb8+
{[%clk 00:00:21]} {[%emt 00:00:02]} 1-0

[Event "MČR v bleskovém šachu družstev 2019"]
[Site "Teplice, Czech Republic"]
[Date "2019.09.14"]
[Round "10.25"]
[White "Bujak, Michal"]
[Black "Liska, Jiri"]
[Result "0-1"]
[TimeControl "3 mim. + 2 s"]
[BlackTitle "FM"]
[WhiteFideId "316318"]
[WhiteElo "2120"]
[BlackElo "2241"]

1. e4 {[%clk 00:03:02]} {[%emt 00:00:02]} c5 {[%clk 00:03:00]} {[%emt
00:00:05]} 2. Nf3 {[%clk 00:03:03]} {[%emt 00:00:02]} Nc6 {[%clk 00:03:00]} 3.
d4 {[%clk 00:03:04]} {[%emt 00:00:01]} cxd4 {[%clk 00:03:01]} {[%emt 00:00:01]}
4. Nxd4 {[%clk 00:03:05]} {[%emt 00:00:01]} Nf6 {[%clk 00:02:57]} {[%emt
00:00:06]} 5. Nc3 {[%clk 00:03:05]} {[%emt 00:00:01]} e5 {[%clk 00:02:58]}
{[%emt 00:00:01]} 6. Ndb5 {[%clk 00:03:04]} {[%emt 00:00:04]} d6 {[%clk
00:02:59]} 7. a4 {[%clk 00:03:05]} {[%emt 00:00:02]} Be7 {[%clk 00:02:43]}
{[%emt 00:00:18]} 8. Bg5 {[%clk 00:02:54]} {[%emt 00:00:13]} a6 {[%clk
00:02:10]} {[%emt 00:00:35]} 9. Bxf6 {[%clk 00:02:41]} {[%emt 00:00:15]} gxf6
{[%clk 00:02:10]} {[%emt 00:00:01]} 10. Na3 {[%clk 00:02:39]} {[%emt 00:00:04]}
f5 {[%clk 00:02:11]} {[%emt 00:00:02]} 11. Qh5 {[%clk 00:01:19]} {[%emt
00:01:21]} Nd4 {[%clk 00:02:02]} {[%emt 00:00:11]} 12. Bc4 {[%clk 00:01:10]}
{[%emt 00:00:12]} O-O {[%clk 00:01:49]} {[%emt 00:00:15]} 13. O-O-O {[%clk
00:01:04]} {[%emt 00:00:08]} Be6 {[%clk 00:01:27]} {[%emt 00:00:24]} 14. exf5
{[%clk 00:00:57]} {[%emt 00:00:09]} Bg5+ {[%clk 00:01:03]} {[%emt 00:00:25]} 15.
Kb1 {[%clk 00:00:51]} {[%emt 00:00:09]} Bxf5 {[%clk 00:00:52]} {[%emt
00:00:13]} 16. h4 {[%clk 00:00:45]} {[%emt 00:00:08]} b5 {[%clk 00:00:33]}
{[%emt 00:00:21]} 17. hxg5 {[%clk 00:00:24]} {[%emt 00:00:23]} bxc4 {[%clk
00:00:27]} {[%emt 00:00:07]} 18. Nd5 {[%clk 00:00:18]} {[%emt 00:00:08]} Bg6
{[%clk 00:00:21]} {[%emt 00:00:09]} 19. Qh6 {[%clk 00:00:15]} {[%emt 00:00:05]}
Nf5 {[%clk 00:00:22]} {[%emt 00:00:01]} 20. Qh3 {[%clk 00:00:12]} {[%emt
00:00:04]} Qxg5 {[%clk 00:00:15]} {[%emt 00:00:10]} 21. Nxc4 {[%clk 00:00:12]}
{[%emt 00:00:02]} Rab8 {[%clk 00:00:14]} {[%emt 00:00:03]} 22. Nde3 {[%clk
00:00:05]} {[%emt 00:00:09]} Nd4 {[%clk 00:00:13]} {[%emt 00:00:03]} 23. Rd2
{[%clk 00:00:04]} {[%emt 00:00:04]} Rfc8 {[%clk 00:00:13]} {[%emt 00:00:01]} 24.
Rhd1 {[%clk 00:00:04]} {[%emt 00:00:02]} Rc6 {[%clk 00:00:11]} {[%emt
00:00:05]} 25. Rxd4 exd4 {[%clk 00:00:11]} 26. Rxd4 {[%clk 00:00:05]} Re8
{[%clk 00:00:09]} {[%emt 00:00:03]} 27. Qd7 {[%clk 00:00:04]} {[%emt 00:00:04]}
Rec8 {[%clk 00:00:09]} {[%emt 00:00:02]} 28. Rxd6 {[%clk 00:00:03]} {[%emt
00:00:03]} Rxc4 {[%clk 00:00:08]} {[%emt 00:00:03]} 29. Nxc4 {[%clk 00:00:00]}
{[%emt 00:00:03]} Rxc4 {[%clk 00:00:08]} {[%emt 00:00:01]} 30. Rd2 {[%emt
00:00:03]} 0-1

[Event "MČR v bleskovém šachu družstev 2019"]
[Site "Teplice, Czech Republic"]
[Date "2019.09.14"]
[Round "10.26"]
[White "Vltavsky, Vladimir"]
[Black "Sott, Pavel"]
[Result "1-0"]
[TimeControl "3 mim. + 2 s"]
[BlackFideId "311910"]
[WhiteElo "2252"]
[BlackElo "2167"]

1. e4 {[%clk 00:03:02]} {[%emt 00:00:03]} c5 {[%clk 00:03:03]} 2. Nf3 {[%clk
00:03:03]} Nc6 {[%clk 00:03:05]} 3. c3 {[%clk 00:03:05]} d5 {[%clk 00:03:05]}
{[%emt 00:00:03]} 4. exd5 {[%clk 00:03:05]} {[%emt 00:00:01]} Qxd5 {[%clk
00:03:07]} {[%emt 00:00:01]} 5. d4 {[%clk 00:03:06]} Bg4 {[%clk 00:03:07]}
{[%emt 00:00:01]} 6. Be2 {[%clk 00:03:07]} {[%emt 00:00:01]} cxd4 {[%clk
00:03:07]} {[%emt 00:00:02]} 7. cxd4 {[%clk 00:03:08]} {[%emt 00:00:01]} e6
{[%clk 00:03:09]} 8. Nc3 {[%clk 00:03:08]} {[%emt 00:00:02]} Qa5 {[%clk
00:03:10]} 9. O-O {[%clk 00:03:05]} {[%emt 00:00:06]} Nf6 {[%clk 00:03:11]}
{[%emt 00:00:02]} 10. h3 {[%clk 00:03:04]} {[%emt 00:00:02]} Bh5 {[%clk
00:03:12]} 11. Be3 {[%clk 00:02:57]} {[%emt 00:00:09]} Be7 {[%clk 00:03:12]}
{[%emt 00:00:02]} 12. a3 {[%clk 00:02:57]} {[%emt 00:00:01]} O-O {[%clk
00:03:13]} {[%emt 00:00:02]} 13. b4 {[%clk 00:02:58]} {[%emt 00:00:01]} Qd8
{[%clk 00:03:14]} 14. Qb3 {[%clk 00:02:57]} {[%emt 00:00:03]} Rc8 {[%clk
00:03:14]} {[%emt 00:00:02]} 15. Rfd1 {[%clk 00:02:55]} {[%emt 00:00:04]} a6
{[%clk 00:03:09]} {[%emt 00:00:08]} 16. Rd2 {[%clk 00:02:49]} {[%emt 00:00:07]}
Nd5 {[%clk 00:02:56]} {[%emt 00:00:15]} 17. Nxd5 {[%clk 00:02:47]} {[%emt
00:00:04]} Qxd5 {[%clk 00:02:57]} {[%emt 00:00:02]} 18. Qxd5 {[%clk 00:02:34]}
{[%emt 00:00:15]} exd5 {[%clk 00:02:57]} {[%emt 00:00:01]} 19. g4 {[%clk
00:02:05]} {[%emt 00:00:32]} Bg6 {[%clk 00:02:58]} {[%emt 00:00:01]} 20. Ne5
{[%clk 00:02:06]} Bf6 {[%clk 00:02:53]} {[%emt 00:00:06]} 21. f4 {[%clk
00:02:04]} {[%emt 00:00:05]} Be4 {[%clk 00:02:48]} {[%emt 00:00:07]} 22. Kf2
{[%clk 00:02:01]} {[%emt 00:00:05]} Rc7 {[%clk 00:02:23]} {[%emt 00:00:27]} 23.
Bf3 {[%clk 00:02:00]} {[%emt 00:00:04]} Bxf3 24. Kxf3 {[%clk 00:02:01]} Rfc8
{[%clk 00:02:13]} {[%emt 00:00:07]} 25. Re1 {[%clk 00:02:00]} {[%emt 00:00:04]}
Na7 {[%clk 00:01:56]} {[%emt 00:00:19]} 26. a4 {[%clk 00:01:56]} {[%emt
00:00:06]} Rc3 {[%clk 00:01:55]} {[%emt 00:00:03]} 27. g5 {[%clk 00:01:50]}
{[%emt 00:00:07]} Be7 {[%clk 00:01:47]} {[%emt 00:00:09]} 28. Nd3 {[%clk
00:01:43]} {[%emt 00:00:09]} Bd6 {[%clk 00:01:39]} {[%emt 00:00:11]} 29. Kf2
{[%clk 00:01:26]} {[%emt 00:00:19]} Re8 {[%clk 00:01:29]} {[%emt 00:00:11]} 30.
Rdd1 {[%clk 00:00:47]} {[%emt 00:00:42]} Nc6 {[%clk 00:01:19]} {[%emt
00:00:12]} 31. b5 {[%clk 00:00:47]} {[%emt 00:00:02]} Ne7 {[%clk 00:00:44]}
{[%emt 00:00:37]} 32. bxa6 {[%clk 00:00:39]} {[%emt 00:00:09]} bxa6 {[%clk
00:00:46]} 33. Nc5 {[%clk 00:00:40]} {[%emt 00:00:01]} Bxc5 {[%clk 00:00:24]}
{[%emt 00:00:24]} 34. dxc5 {[%clk 00:00:41]} {[%emt 00:00:01]} Nf5 {[%clk
00:00:23]} {[%emt 00:00:03]} 35. Bd2 {[%clk 00:00:42]} 1-0

[Event "MČR v bleskovém šachu družstev 2019"]
[Site "Teplice, Czech Republic"]
[Date "2019.09.14"]
[Round "10.27"]
[White "Kupka, Frantisek"]
[Black "Marsalek, Zdenek"]
[Result "1-0"]
[TimeControl "3 mim. + 2 s"]
[WhiteFideId "309540"]
[WhiteElo "2034"]
[BlackElo "2272"]

1. e4 {[%clk 00:03:02]} {[%emt 00:00:02]} d6 {[%clk 00:03:03]} {[%emt
00:00:01]} 2. d4 {[%clk 00:03:03]} {[%emt 00:00:02]} Nf6 {[%clk 00:03:04]}
{[%emt 00:00:01]} 3. Bd3 {[%clk 00:03:02]} {[%emt 00:00:02]} e5 {[%clk
00:03:05]} {[%emt 00:00:02]} 4. c3 {[%clk 00:03:03]} {[%emt 00:00:01]} d5
{[%clk 00:03:05]} {[%emt 00:00:01]} 5. dxe5 {[%clk 00:02:55]} {[%emt 00:00:10]}
dxe4 {[%clk 00:03:06]} {[%emt 00:00:02]} 6. Bc2 {[%clk 00:02:45]} {[%emt
00:00:12]} Qxd1+ {[%clk 00:02:59]} {[%emt 00:00:09]} 7. Kxd1 {[%clk 00:02:38]}
{[%emt 00:00:08]} Ng4 {[%clk 00:02:57]} {[%emt 00:00:04]} 8. Ke2 {[%clk
00:02:22]} {[%emt 00:00:19]} Nxe5 {[%clk 00:02:38]} {[%emt 00:00:20]} 9. Bxe4
{[%clk 00:02:20]} {[%emt 00:00:04]} Bd6 {[%clk 00:02:34]} {[%emt 00:00:06]} 10.
Nf3 {[%clk 00:02:11]} {[%emt 00:00:12]} Ng6 {[%clk 00:02:25]} {[%emt 00:00:11]}
11. Re1 {[%clk 00:02:06]} {[%emt 00:00:06]} O-O {[%clk 00:02:24]} {[%emt
00:00:03]} 12. Kf1 {[%clk 00:02:06]} {[%emt 00:00:02]} c6 {[%clk 00:02:23]}
{[%emt 00:00:03]} 13. Nbd2 {[%clk 00:02:00]} {[%emt 00:00:08]} Nd7 {[%clk
00:02:21]} {[%emt 00:00:05]} 14. Nc4 {[%clk 00:01:59]} {[%emt 00:00:03]} Bc7
{[%clk 00:02:21]} {[%emt 00:00:01]} 15. a4 {[%clk 00:01:55]} {[%emt 00:00:07]}
Nc5 {[%clk 00:02:16]} {[%emt 00:00:06]} 16. Bc2 {[%clk 00:01:53]} {[%emt
00:00:04]} Bg4 {[%clk 00:02:07]} {[%emt 00:00:11]} 17. Nce5 {[%clk 00:01:30]}
{[%emt 00:00:25]} Nxe5 {[%clk 00:01:52]} {[%emt 00:00:17]} 18. Nxe5 {[%clk
00:01:31]} {[%emt 00:00:02]} Be6 {[%clk 00:01:48]} {[%emt 00:00:05]} 19. Nf3
{[%clk 00:01:05]} {[%emt 00:00:28]} Rfe8 {[%clk 00:01:37]} {[%emt 00:00:13]} 20.
Nd4 {[%clk 00:00:59]} {[%emt 00:00:09]} Bc4+ {[%clk 00:01:36]} {[%emt
00:00:03]} 21. Ne2 {[%clk 00:00:53]} {[%emt 00:00:08]} Re7 {[%clk 00:01:08]}
{[%emt 00:00:30]} 22. Be3 {[%clk 00:00:53]} {[%emt 00:00:02]} Nd3 {[%clk
00:01:04]} {[%emt 00:00:06]} 23. Bxd3 {[%clk 00:00:40]} {[%emt 00:00:15]} Bxd3
{[%clk 00:01:05]} 24. Red1 {[%clk 00:00:40]} {[%emt 00:00:02]} Bc4 {[%clk
00:01:03]} {[%emt 00:00:03]} 25. Rd2 {[%clk 00:00:38]} {[%emt 00:00:05]} Rae8
{[%clk 00:01:02]} {[%emt 00:00:03]} 26. Kg1 {[%clk 00:00:34]} {[%emt 00:00:06]}
f5 {[%clk 00:01:02]} {[%emt 00:00:02]} 27. g3 {[%emt 00:00:41]} g5 {[%emt
00:00:20]} 28. Nd4 {[%emt 00:00:02]} f4 {[%emt 00:00:01]} 29. Ne2 {[%emt
00:00:02]} 1-0

[Event "MČR v bleskovém šachu družstev 2019"]
[Site "Teplice, Czech Republic"]
[Date "2019.09.14"]
[Round "10.28"]
[White "Duran, Tomas"]
[Black "Janocko, Petr"]
[Result "0-1"]
[TimeControl "3 mim. + 2 s"]
[BlackFideId "320099"]
[WhiteElo "2135"]
[BlackElo "2067"]

1. e4 {[%clk 00:03:02]} {[%emt 00:00:02]} c6 {[%clk 00:03:03]} {[%emt
00:00:01]} 2. d4 {[%clk 00:03:02]} {[%emt 00:00:02]} d5 {[%clk 00:03:05]} 3. e5
{[%clk 00:03:04]} Bf5 {[%clk 00:03:05]} {[%emt 00:00:01]} 4. Ne2 {[%clk
00:03:03]} {[%emt 00:00:03]} e6 {[%clk 00:02:57]} {[%emt 00:00:10]} 5. Ng3
{[%clk 00:03:03]} {[%emt 00:00:01]} Bg6 {[%clk 00:02:58]} 6. Be2 {[%clk
00:03:04]} {[%emt 00:00:02]} c5 {[%clk 00:02:59]} {[%emt 00:00:01]} 7. c3
{[%clk 00:03:04]} {[%emt 00:00:02]} Nc6 {[%clk 00:02:59]} 8. Be3 {[%clk
00:02:39]} {[%emt 00:00:27]} Qb6 {[%clk 00:02:59]} {[%emt 00:00:02]} 9. Qb3
{[%clk 00:02:25]} {[%emt 00:00:17]} Qxb3 10. axb3 {[%clk 00:02:26]} cxd4 {[%clk
00:02:59]} {[%emt 00:00:01]} 11. cxd4 {[%emt 00:00:02]} Bxb1 {[%clk 00:02:45]}
{[%emt 00:00:15]} 12. Rxb1 {[%clk 00:02:27]} {[%emt 00:00:03]} Bb4+ {[%clk
00:02:45]} {[%emt 00:00:01]} 13. Kf1 {[%clk 00:02:17]} {[%emt 00:00:12]} Na5
{[%clk 00:02:37]} {[%emt 00:00:09]} 14. Bb5+ {[%clk 00:02:05]} {[%emt
00:00:14]} Ke7 {[%clk 00:02:38]} {[%emt 00:00:01]} 15. Rc1 {[%clk 00:02:01]}
{[%emt 00:00:07]} a6 {[%clk 00:02:26]} {[%emt 00:00:14]} 16. Bd3 {[%clk
00:01:47]} {[%emt 00:00:16]} Kd7 {[%clk 00:02:18]} {[%emt 00:00:10]} 17. Ke2
{[%clk 00:01:34]} {[%emt 00:00:15]} h5 {[%clk 00:02:17]} {[%emt 00:00:02]} 18.
Rhd1 {[%clk 00:01:12]} {[%emt 00:00:25]} Ne7 {[%clk 00:02:09]} {[%emt
00:00:09]} 19. Rc2 {[%clk 00:01:08]} {[%emt 00:00:07]} h4 {[%clk 00:02:07]}
{[%emt 00:00:05]} 20. Nf1 {[%clk 00:01:05]} {[%emt 00:00:04]} Nxb3 {[%clk
00:02:01]} {[%emt 00:00:07]} 21. Bg5 {[%clk 00:01:04]} {[%emt 00:00:03]} Rac8
{[%clk 00:01:54]} {[%emt 00:00:09]} 22. Ke3 {[%clk 00:00:44]} {[%emt 00:00:23]}
h3 {[%clk 00:01:49]} {[%emt 00:00:07]} 23. g4 {[%clk 00:00:41]} {[%emt
00:00:05]} Nc6 {[%clk 00:01:28]} {[%emt 00:00:24]} 24. Be2 {[%clk 00:00:27]}
{[%emt 00:00:16]} Rhf8 {[%clk 00:01:20]} {[%emt 00:00:09]} 25. Ng3 {[%clk
00:00:16]} {[%emt 00:00:13]} f6 {[%clk 00:01:21]} 26. exf6 {[%clk 00:00:12]}
{[%emt 00:00:06]} gxf6 {[%clk 00:01:22]} {[%emt 00:00:01]} 27. Bf4 {[%clk
00:00:12]} {[%emt 00:00:02]} e5 {[%clk 00:01:09]} {[%emt 00:00:14]} 28. dxe5
{[%clk 00:00:13]} {[%emt 00:00:02]} fxe5 {[%clk 00:01:10]} 29. Rxd5+ {[%clk
00:00:14]} Ke6 {[%clk 00:01:09]} {[%emt 00:00:03]} 30. Bc4 {[%clk 00:00:13]}
{[%emt 00:00:02]} exf4+ {[%clk 00:01:09]} {[%emt 00:00:03]} 31. Ke2 {[%clk
00:00:11]} {[%emt 00:00:04]} fxg3 {[%clk 00:00:56]} {[%emt 00:00:14]} 32. Bxb3
{[%clk 00:00:10]} {[%emt 00:00:04]} Rxf2+ {[%clk 00:00:56]} {[%emt 00:00:02]}
33. Kd3 {[%clk 00:00:11]} Rf3+ {[%clk 00:00:54]} {[%emt 00:00:04]} 34. Ke4
{[%clk 00:00:08]} {[%emt 00:00:05]} Rxb3 {[%clk 00:00:54]} {[%emt 00:00:02]} 35.
Rh5 {[%clk 00:00:08]} {[%emt 00:00:02]} g2 {[%clk 00:00:53]} {[%emt 00:00:03]}
36. Rh6+ {[%clk 00:00:07]} {[%emt 00:00:04]} Kf7 {[%clk 00:00:53]} {[%emt
00:00:02]} 37. Rf2+ {[%clk 00:00:08]} {[%emt 00:00:01]} Kg7 {[%clk 00:00:54]}
38. Rhf6 {[%clk 00:00:08]} {[%emt 00:00:02]} g1=Q {[%clk 00:00:51]} {[%emt
00:00:04]} 39. Rf7+ {[%emt 00:00:02]} Kg8 40. Kf5 {[%clk 00:00:08]} {[%emt
00:00:02]} Qxf2+ {[%clk 00:00:48]} {[%emt 00:00:07]} 0-1

[Event "MČR v bleskovém šachu družstev 2019"]
[Site "Teplice, Czech Republic"]
[Date "2019.09.14"]
[Round "11.1"]
[White "Babicka, Michal"]
[Black "Kociscak, Jiri"]
[Result "0-1"]
[TimeControl "3 mim. + 2 s"]
[BlackTitle "IM"]
[BlackFideId "322121"]
[WhiteElo "2076"]
[BlackElo "2417"]

1. e4 {[%clk 00:03:02]} {[%emt 00:00:01]} e5 {[%clk 00:03:03]} {[%emt
00:00:02]} 2. Nf3 {[%clk 00:03:03]} {[%emt 00:00:01]} Nc6 {[%clk 00:03:03]}
{[%emt 00:00:01]} 3. d4 {[%clk 00:03:04]} {[%emt 00:00:02]} exd4 {[%clk
00:03:04]} {[%emt 00:00:01]} 4. Bc4 {[%clk 00:03:05]} Nf6 {[%clk 00:03:04]}
{[%emt 00:00:01]} 5. e5 {[%clk 00:03:06]} {[%emt 00:00:02]} Ng4 {[%clk
00:03:05]} 6. O-O {[%clk 00:03:00]} {[%emt 00:00:09]} d6 {[%clk 00:03:06]} 7.
exd6 {[%clk 00:02:50]} {[%emt 00:00:12]} Bxd6 {[%clk 00:03:06]} {[%emt
00:00:02]} 8. h3 {[%clk 00:02:47]} {[%emt 00:00:05]} Nge5 {[%clk 00:03:07]}
{[%emt 00:00:02]} 9. Nxe5 {[%clk 00:02:46]} {[%emt 00:00:02]} Nxe5 {[%clk
00:03:08]} {[%emt 00:00:01]} 10. Bb3 {[%clk 00:02:39]} {[%emt 00:00:10]} O-O
{[%clk 00:03:05]} {[%emt 00:00:05]} 11. Qxd4 {[%clk 00:02:27]} {[%emt
00:00:14]} Nf3+ {[%clk 00:03:05]} {[%emt 00:00:01]} 12. gxf3 {[%clk 00:02:18]}
{[%emt 00:00:11]} Bh2+ {[%clk 00:03:05]} {[%emt 00:00:01]} 13. Kxh2 {[%clk
00:02:14]} {[%emt 00:00:06]} Qxd4 {[%clk 00:03:06]} {[%emt 00:00:01]} 14. Nc3
{[%clk 00:02:05]} {[%emt 00:00:11]} Qh4 {[%clk 00:03:06]} {[%emt 00:00:02]} 0-1